bitfinex-derivatives/quotes_ETHF0:USTF0_20250908
["timestamp","ask_amount","ask_price","bid_price","bid_amount"]
[1757338272900,0.5991,4347.7,4347.4,0.239]
[1757338273109,0.8307,4347.5,4346.8,3.7635]
[1757338273302,0.2316,4347.5,4346.9,0.239]
[1757338273806,3.2078,4347.8,4346.9,0.239]
[1757338274013,0.5991,4347.7,4347.0,0.5557]
[1757338274313,0.5991,4347.7,4347.1,0.5557]
[1757338275309,3.2078,4348.3,4347.5,0.2197]
[1757338275613,3.2078,4348.3,4347.7,0.5557]
[1757338276110,0.5991,4348.9,4348.1,0.5557]
[1757338276312,0.5991,4348.9,4348.3,0.5557]
[1757338276701,0.5991,4348.9,4348.3,3.2078]
[1757338277007,3.2078,4349.2,4348.5,0.2197]
[1757338277213,3.2078,4349.2,4348.6,0.5557]
[1757338277410,0.5991,4349.3,4348.7,0.239]
[1757338277601,3.4394,4350.0,4348.8,0.239]
[1757338277602,0.5991,4349.2,4348.8,0.239]
[1757338277808,3.4394,4349.5,4348.3,3.7635]
[1757338278112,0.5991,4348.9,4348.4,0.239]
[1757338278307,0.5991,4348.9,4347.8,3.2078]
[1757338278509,0.5991,4348.4,4347.9,0.239]
[1757338278714,3.4394,4348.5,4347.9,0.239]
[1757338279012,0.5991,4348.4,4347.9,0.239]
[1757338279312,0.5991,4348.9,4348.1,0.5557]
[1757338280009,0.2316,4348.5,4347.8,3.2078]
[1757338280207,0.2316,4348.5,4346.5,0.2197]
[1757338280208,0.2316,4348.0,4347.2,3.2078]
[1757338280511,0.5991,4347.9,4347.2,3.2078]
[1757338280713,0.5991,4347.9,4347.3,0.7947]
[1757338281007,0.2316,4348.0,4347.4,0.239]
[1757338281213,0.8307,4348.0,4347.4,0.7947]
[1757338282308,0.5991,4348.0,4347.4,0.7947]
[1757338282506,0.5991,4348.6,4347.6,0.5557]
[1757338282811,0.5991,4348.6,4347.8,0.5557]
[1757338283011,0.5991,4348.6,4348.0,0.2197]
[1757338283203,0.5991,4348.6,4348.1,0.5557]
[1757338283408,0.2316,4349.0,4348.3,0.5557]
[1757338283708,0.5991,4349.1,4348.4,0.239]
[1757338283908,0.5991,4349.1,4348.5,0.7754]
[1757338284110,0.5991,4349.1,4348.5,0.2197]
[1757338284309,3.2078,4349.4,4348.6,0.5557]
[1757338284515,0.5991,4349.3,4348.6,0.5557]
[1757338284813,0.5991,4349.3,4348.7,0.239]
[1757338285509,0.22994,4349.2,4348.2,3.2078]
[1757338285703,0.5991,4348.6,4348.4,0.239]
[1757338285908,3.2078,4348.7,4348.4,0.239]
[1757338286515,0.5991,4348.6,4348.4,0.239]
[1757338286720,3.2078,4348.7,4348.4,0.239]
[1757338287015,0.5991,4348.6,4348.4,0.239]
[1757338287314,0.2316,4349.0,4348.4,0.239]
[1757338287508,0.5991,4348.9,4348.4,0.239]
[1757338287711,0.2316,4349.0,4348.4,0.239]
[1757338288013,0.8307,4349.0,4348.4,0.7947]
[1757338290109,0.2316,4349.0,4348.4,0.7947]
[1757338290316,0.2316,4349.0,4348.4,0.239]
[1757338290516,0.5991,4348.9,4348.4,0.239]
[1757338291214,0.2316,4348.5,4348.0,0.5557]
[1757338291418,0.5991,4348.4,4348.1,0.239]
[1757338291618,0.2316,4348.5,4348.1,0.7947]
[1757338291824,0.2316,4348.5,4348.1,0.239]
[1757338292122,0.5991,4348.4,4348.1,0.239]
[1757338292412,0.2316,4348.5,4348.1,0.239]
[1757338292719,0.2316,4348.5,4347.6,0.5557]
[1757338292908,0.5991,4348.4,4347.7,0.239]
[1757338293112,0.5991,4348.4,4347.8,0.5557]
[1757338293308,0.5991,4348.8,4347.8,0.5557]
[1757338293514,0.5991,4348.8,4348.0,3.2078]
[1757338293816,0.5991,4348.8,4348.1,0.5557]
[1757338294016,0.5991,4348.8,4348.2,0.239]
[1757338294320,0.2316,4348.5,4347.6,0.5557]
[1757338294515,0.5991,4348.4,4347.4,3.2078]
[1757338294712,0.5991,4348.4,4347.7,0.239]
[1757338296018,0.5991,4348.4,4347.2,0.5868]
[1757338296019,3.2078,4348.1,4347.2,0.5868]
[1757338296220,0.5541,4347.9,4347.6,0.239]
[1757338296428,0.228,4348.0,4346.9,3.2078]
[1757338296719,0.5541,4347.9,4347.0,0.239]
[1757338296909,3.2078,4347.6,4347.0,0.239]
[1757338297115,0.228,4347.5,4347.0,0.239]
[1757338297315,0.228,4347.5,4347.0,0.8258]
[1757338297513,0.5541,4347.4,4346.7,3.2078]
[1757338297815,0.5541,4347.4,4346.8,0.239]
[1757338298412,0.228,4347.0,4346.8,0.239]
[1757338298612,0.5541,4346.9,4346.8,0.239]
[1757338299721,0.5541,4346.9,4346.8,0.8258]
[1757338300117,0.5541,4346.9,4346.8,0.239]
[1757338300416,0.5541,4346.9,4346.2,3.2078]
[1757338300624,0.5541,4346.4,4346.2,3.2078]
[1757338300816,0.5541,4346.4,4346.2,3.7946]
[1757338301022,0.5541,4346.4,4346.3,0.5868]
[1757338302716,0.5541,4347.2,4346.3,0.5868]
[1757338302917,3.7619,4347.6,4346.7,0.5868]
[1757338303116,3.7619,4347.6,4347.0,0.2152]
[1757338303318,3.7619,4347.6,4347.1,0.5868]
[1757338303518,3.7619,4347.6,4347.0,0.2152]
[1757338303712,3.7619,4347.6,4347.1,0.5868]
[1757338303913,3.2078,4347.6,4347.0,0.2152]
[1757338304322,3.7619,4347.6,4347.1,0.5868]
[1757338304524,3.2078,4347.6,4347.0,0.2152]
[1757338305019,0.5541,4348.3,4347.6,0.5868]
[1757338305726,3.2078,4348.4,4347.6,0.5868]
[1757338306726,3.2078,4348.4,4347.5,0.2152]
[1757338306727,3.2078,4348.4,4347.8,0.5868]
[1757338306920,0.5541,4348.5,4347.9,0.239]
[1757338307121,0.5541,4348.5,4348.1,0.5868]
[1757338307326,0.5541,4348.5,4348.0,0.2152]
[1757338308026,0.5541,4348.5,4348.1,0.5868]
[1757338308326,0.5541,4348.5,4348.0,0.2152]
[1757338308522,0.5541,4348.9,4347.6,3.2078]
[1757338308722,0.5541,4348.8,4347.7,0.239]
[1757338308923,0.78408,4348.8,4347.7,0.239]
[1757338309124,0.5541,4348.8,4347.7,0.239]
[1757338309325,0.5541,4348.6,4347.7,0.239]
[1757338309525,0.5541,4348.4,4347.7,0.239]
[1757338309926,0.5541,4348.4,4347.8,0.5868]
[1757338310324,0.5541,4348.4,4347.7,0.239]
[1757338310527,0.5541,4347.9,4347.7,0.239]
[1757338310824,0.5541,4347.9,4346.9,3.2078]
[1757338310825,0.5541,4347.8,4346.9,3.7946]
[1757338311023,3.2078,4347.9,4346.9,3.2078]
[1757338311222,0.7821,4347.0,4346.9,3.2078]
[1757338311423,0.5541,4347.0,4346.9,3.7946]
[1757338312026,0.5541,4347.0,4346.9,3.2078]
[1757338312323,3.2078,4347.9,4346.9,3.7946]
[1757338312529,0.5541,4347.8,4346.9,3.7946]
[1757338312725,0.5541,4347.3,4346.7,0.239]
[1757338313030,0.5541,4347.2,4346.8,0.239]
[1757338313826,0.5541,4347.3,4346.8,0.239]
[1757338314224,0.5541,4346.9,4346.8,0.239]
[1757338314424,0.228,4346.5,4346.4,0.239]
[1757338314626,0.5541,4346.5,4346.4,0.239]
[1757338314822,0.5541,4346.5,4346.4,0.8258]
[1757338316530,0.5541,4346.8,4346.4,0.239]
[1757338316733,0.5541,4346.8,4346.5,0.5868]
[1757338316923,0.5541,4346.8,4346.5,0.2152]
[1757338317128,0.5541,4346.8,4346.6,0.5868]
[1757338317634,3.2078,4346.9,4346.6,0.5868]
[1757338317835,0.7821,4347.5,4346.6,0.5868]
[1757338318130,0.228,4347.0,4346.7,0.239]
[1757338318338,0.5541,4346.8,4346.7,0.239]
[1757338319839,0.5541,4346.8,4346.7,0.8258]
[1757338320435,0.5541,4347.9,4346.8,0.5868]
[1757338320628,0.5541,4347.9,4346.9,0.5868]
[1757338321534,3.2078,4348.1,4347.2,3.2078]
[1757338321739,0.5541,4348.4,4347.5,0.2152]
[1757338321936,0.5541,4348.4,4347.7,3.2078]
[1757338322240,0.5541,4348.9,4348.3,0.5868]
[1757338322439,0.5541,4348.9,4348.5,0.802]
[1757338322642,3.7619,4349.3,4348.6,0.5868]
[1757338323244,3.7619,4349.3,4348.4,0.239]
[1757338323636,0.5541,4349.3,4348.5,0.2152]
[1757338323939,0.5541,4349.3,4348.6,0.5868]
[1757338324637,3.2078,4349.8,4348.6,0.5868]
[1757338324838,0.5541,4349.7,4348.8,0.5868]
[1757338325138,0.5541,4351.1,4349.6,3.2078]
[1757338325444,3.2078,4351.6,4351.0,0.7975]
[1757338325646,0.5731,4351.5,4351.1,0.239]
[1757338325844,3.2078,4351.6,4351.1,0.5359]
[1757338326037,0.2299,4351.5,4350.5,0.7511]
[1757338326237,0.5731,4351.4,4350.6,0.239]
[1757338326437,0.5731,4351.4,4350.7,0.239]
[1757338326744,3.7809,4351.1,4350.5,0.238]
[1757338326939,0.2299,4351.5,4350.6,0.5359]
[1757338327244,0.803,4351.5,4350.6,0.5359]
[1757338327436,0.803,4351.5,4350.7,0.238]
[1757338328150,3.2078,4351.2,4350.7,0.238]
[1757338328444,0.2299,4351.0,4350.4,3.2078]
[1757338328747,0.5731,4350.9,4350.3,0.238]
[1757338329144,0.2299,4350.5,4349.4,0.5359]
[1757338329443,0.5731,4350.4,4349.5,0.238]
[1757338330248,0.5731,4349.9,4349.3,3.2078]
[1757338330446,0.2299,4350.0,4349.4,0.239]
[1757338330645,0.2299,4350.0,4349.0,0.7466]
[1757338330646,0.2299,4350.0,4348.8,3.2078]
[1757338330844,0.5731,4349.9,4349.0,0.239]
[1757338331658,3.2078,4350.1,4349.3,3.2078]
[1757338331856,3.2078,4350.1,4349.5,0.2107]
[1757338332056,3.2078,4350.1,4349.7,0.5359]
[1757338332254,3.2078,4350.7,4350.1,0.5359]
[1757338332555,3.2078,4351.3,4350.5,0.2107]
[1757338332756,3.2078,4351.3,4350.6,0.5359]
[1757338332948,3.2078,4351.3,4350.7,0.239]
[1757338333450,3.2078,4351.3,4350.8,0.5359]
[1757338333653,3.2078,4351.3,4350.7,0.239]
[1757338334151,3.7809,4351.3,4350.7,0.7749]
[1757338335952,0.2299,4351.0,4350.8,0.239]
[1757338336166,0.5731,4350.9,4350.8,0.239]
[1757338336954,0.5731,4350.9,4350.3,3.2078]
[1757338336955,0.5731,4350.9,4350.3,0.238]
[1757338337364,0.5731,4350.9,4350.1,0.5359]
[1757338337553,0.5731,4350.9,4350.1,0.238]
[1757338337750,0.2299,4350.0,4349.1,3.2078]
[1757338337959,0.5731,4349.9,4349.2,0.5359]
[1757338338154,0.5731,4349.9,4349.3,0.5359]
[1757338338855,3.7809,4350.3,4349.3,0.5359]
[1757338339259,0.5731,4350.2,4349.4,0.24]
[1757338339466,0.803,4349.5,4349.4,0.24]
[1757338340760,0.5731,4349.4,4349.0,3.2078]
[1757338340959,0.5731,4349.4,4348.4,3.2078]
[1757338341266,0.803,4348.5,4348.4,3.2078]
[1757338342263,0.5731,4349.0,4348.4,3.7437]
[1757338344364,0.803,4349.0,4348.4,3.7437]
[1757338345158,0.2299,4349.0,4348.4,3.7437]
[1757338345362,0.5731,4349.4,4348.5,0.5359]
[1757338345563,0.5731,4349.4,4348.5,0.7466]
[1757338345768,0.5731,4349.3,4348.5,0.5359]
[1757338346067,0.5731,4349.4,4348.4,3.2078]
[1757338346268,0.4689,4349.5,4348.4,3.2078]
[1757338346668,0.5731,4349.4,4348.4,3.2078]
[1757338346873,0.4689,4349.5,4348.4,3.2078]
[1757338347064,0.2299,4349.0,4348.3,0.24]
[1757338347368,0.5731,4348.9,4348.3,0.24]
[1757338347565,3.7809,4349.1,4348.4,0.5359]
[1757338347759,0.5731,4348.9,4348.3,0.24]
[1757338348168,0.5731,4348.9,4347.0,1.24589]
[1757338348169,3.4377,4348.5,4347.6,3.2078]
[1757338348360,0.5731,4348.4,4347.6,3.2078]
[1757338348561,3.4377,4348.5,4347.7,0.5359]
[1757338348562,3.2078,4348.5,4347.7,0.5359]
[1757338348765,0.5731,4348.8,4347.7,0.5359]
[1757338348966,3.2078,4348.7,4347.7,0.5359]
[1757338349273,0.5731,4348.4,4347.7,3.9837]
[1757338349472,0.5731,4348.4,4347.8,0.5359]
[1757338350765,0.5731,4348.4,4347.7,3.4478]
[1757338350766,0.2299,4348.5,4347.7,3.2078]
[1757338350966,0.5731,4347.9,4347.3,0.5359]
[1757338352270,3.2078,4348.1,4347.3,0.5359]
[1757338352573,0.5731,4348.5,4347.6,3.2078]
[1757338352774,0.803,4348.5,4347.7,0.7279]
[1757338353076,0.803,4348.5,4347.8,0.5359]
[1757338355275,0.803,4348.5,4347.7,0.192]
[1757338356973,0.2299,4348.5,4347.7,0.7478]
[1757338357172,0.5281,4348.4,4347.7,0.7478]
[1757338357366,0.2299,4348.5,4347.7,0.7478]
[1757338357571,0.5281,4348.4,4347.7,0.7478]
[1757338357770,0.2299,4348.5,4347.7,0.7478]
[1757338357972,0.5281,4348.4,4347.7,0.192]
[1757338358171,0.2109,4348.0,4347.7,0.192]
[1757338358372,0.5281,4347.9,4347.7,0.192]
[1757338358579,0.5281,4347.9,4346.3,0.5558]
[1757338358580,0.2109,4347.5,4346.3,0.5558]
[1757338358782,0.2109,4346.5,4346.1,3.2078]
[1757338358981,3.7359,4346.4,4345.7,0.24]
[1757338359173,0.5281,4345.8,4345.7,0.24]
[1757338359774,3.2078,4345.9,4345.1,0.5558]
[1757338359984,0.5281,4345.8,4345.1,0.78593]
[1757338360282,0.5281,4345.8,4345.1,0.5558]
[1757338360981,3.7359,4346.5,4345.6,0.5558]
[1757338361171,3.9468,4346.5,4345.6,0.5558]
[1757338362080,0.5281,4345.9,4345.2,0.24]
[1757338362785,0.5281,4345.9,4345.3,0.5558]
[1757338363374,3.2078,4346.0,4345.3,0.5558]
[1757338363984,3.2078,4346.5,4345.6,0.5558]
[1757338364377,0.5281,4346.4,4345.2,0.24]
[1757338364671,0.5281,4346.4,4345.3,0.5558]
[1757338364876,0.5281,4344.9,4343.5,3.2078]
[1757338365081,0.2109,4344.0,4343.0,3.2078]
[1757338365276,0.2109,4344.0,4341.7,0.241]
[1757338365277,0.5281,4343.8,4342.3,3.7636]
[1757338365580,0.5281,4342.9,4342.3,3.7636]
[1757338365776,0.5281,4342.9,4342.3,0.5558]
[1757338366282,3.7359,4342.8,4341.9,0.5558]
[1757338366983,3.7359,4342.8,4342.1,0.5558]
[1757338368177,0.5281,4343.3,4342.4,0.5558]
[1757338368376,3.2078,4343.4,4342.6,0.5558]
[1757338368571,3.2078,4343.4,4342.6,0.242]
[1757338368879,3.2078,4343.4,4340.6,3.2078]
[1757338368880,0.2109,4342.5,4340.6,3.2078]
[1757338369077,3.2078,4340.7,4340.1,0.5558]
[1757338369271,3.2078,4340.3,4340.0,0.68210029]
[1757338369481,3.2078,4340.3,4340.0,0.45700029]
[1757338369678,3.2078,4340.3,4338.4,3.2078]
[1757338369884,0.246,4340.4,4337.6,0.5558]
[1757338369885,3.2078,4338.9,4337.6,0.5558]
[1757338370083,3.4538,4338.8,4337.6,0.5558]
[1757338370478,3.2078,4338.3,4337.6,0.5558]
[1757338372186,3.2078,4338.3,4336.4,0.5558]
[1757338372187,4.47652,4338.2,4336.4,0.5558]
[1757338372481,0.247,4338.1,4337.2,0.5558]
[1757338372673,0.247,4338.1,4337.5,0.7809]
[1757338375188,3.2078,4338.2,4337.5,0.7809]
[1757338375489,0.247,4338.1,4337.5,0.7809]
[1757338376181,0.247,4338.0,4337.6,0.5558]
[1757338376688,3.2078,4338.2,4337.6,0.5558]
[1757338376890,0.1866358,4341.1,4338.2,0.5558]
[1757338376891,3.2078,4339.3,4338.2,0.5558]
[1757338377085,0.247,4339.2,4338.2,0.5558]
[1757338377585,3.2078,4338.7,4338.5,0.2251]
[1757338377786,3.2078,4338.7,4338.6,0.5558]
[1757338378386,3.2078,4340.1,4338.7,0.5558]
[1757338378687,3.2078,4340.1,4339.2,0.5558]
[1757338379984,3.2078,4340.1,4339.3,0.5558]
[1757338380288,3.2078,4340.1,4339.3,0.23043]
[1757338380483,3.7359,4340.7,4339.8,0.5558]
[1757338380684,3.2078,4340.7,4340.0,0.2251]
[1757338380888,3.2078,4340.2,4339.9,0.5558]
[1757338381088,3.2078,4340.1,4339.9,0.5558]
[1757338381884,3.2078,4340.1,4339.3,0.8028]
[1757338382089,0.5281,4340.0,4339.0,3.4329]
[1757338382287,0.5281,4340.0,4339.0,3.9887]
[1757338382690,0.5281,4340.0,4339.0,0.7809]
[1757338382987,0.248,4340.2,4339.1,0.5558]
[1757338383191,0.202,4340.5,4339.5,3.4329]
[1757338383391,0.202,4340.5,4339.5,0.2251]
[1757338383392,3.2078,4340.0,4339.5,0.2251]
[1757338383696,3.2078,4340.0,4339.0,3.4329]
[1757338383697,35.748,4339.9,4336.0,3.4329]
[1757338383991,3.2078,4336.3,4335.5,0.2251]
[1757338384187,3.2078,4336.3,4335.3,3.2078]
[1757338384197,3.2078,4335.8,4335.3,3.7636]
[1757338384386,3.2078,4335.8,4335.3,0.5558]
[1757338384588,4.252,4335.7,4333.7,3.2078]
[1757338384792,3.2078,4334.2,4332.5,3.2078]
[1757338385088,3.2078,4333.2,4332.2,3.2078]
[1757338385287,3.2078,4333.2,4332.6,0.2251]
[1757338385492,3.2078,4334.3,4333.3,0.5424]
[1757338385787,3.2078,4334.3,4333.5,0.5424]
[1757338385993,3.2078,4334.3,4333.8,0.2096]
[1757338386393,0.254,4334.7,4334.0,0.5424]
[1757338386693,3.2078,4335.0,4334.0,0.5424]
[1757338386991,3.2078,4335.0,4334.5,0.5424]
[1757338387587,3.2078,4335.0,4334.4,3.4174]
[1757338387789,3.2078,4335.0,4334.5,0.5424]
[1757338388185,3.2078,4335.7,4334.5,0.5424]
[1757338388389,3.2078,4335.7,4335.0,0.5424]
[1757338388588,3.2078,4335.7,4335.0,0.752]
[1757338388787,3.2132,4335.7,4334.4,0.752]
[1757338388986,33.211,4337.2,4334.5,3.2078]
[1757338388987,3.2078,4335.6,4334.5,3.2078]
[1757338389188,3.2078,4335.6,4334.6,0.5424]
[1757338389586,3.2078,4335.6,4335.0,0.2096]
[1757338389784,3.2078,4336.1,4335.2,0.5424]
[1757338390088,0.255,4336.5,4335.7,0.5424]
[1757338390291,3.4628,4337.1,4336.2,0.5424]
[1757338391198,3.2078,4336.6,4335.9,3.2078]
[1757338391492,3.2078,4337.1,4336.5,0.2096]
[1757338391996,3.2078,4337.1,4336.6,0.5424]
[1757338392298,3.2078,4337.1,4336.5,0.752]
[1757338392499,3.2132,4337.1,4336.0,0.752]
[1757338392700,3.4628,4337.1,4336.0,0.752]
[1757338393297,3.2078,4337.6,4336.7,0.5424]
[1757338393687,3.2132,4337.6,4336.7,0.5424]
[1757338393892,3.2078,4337.1,4336.5,0.2096]
[1757338394500,3.2078,4337.1,4336.6,0.5424]
[1757338394697,3.2078,4337.1,4336.5,0.2096]
[1757338394892,3.2078,4337.1,4336.6,0.5424]
[1757338395199,3.2078,4337.1,4336.5,0.2096]
[1757338395595,3.2078,4337.1,4336.3,0.5424]
[1757338395796,0.0054,4337.4,4336.3,0.5424]
[1757338395797,3.2078,4336.5,4336.3,0.5424]
[1757338396100,3.2078,4336.5,4336.0,0.4636]
[1757338396402,3.2078,4337.0,4336.5,0.2096]
[1757338398999,3.2078,4337.9,4337.5,0.2096]
[1757338399191,3.2078,4337.9,4337.0,0.4096]
[1757338399801,12.9,4339.7,4337.5,0.752]
[1757338399802,3.2078,4338.7,4337.5,0.752]
[1757338399996,0.254,4338.6,4337.6,0.5424]
[1757338400300,3.2078,4338.7,4337.6,0.5424]
[1757338400491,3.2078,4338.7,4337.6,0.254]
[1757338400694,3.2078,4338.7,4337.7,0.5424]
[1757338401198,0.0054,4339.5,4337.6,0.254]
[1757338401199,0.254,4339.1,4338.6,0.5424]
[1757338401393,0.0054,4338.6,4337.8,0.00346009]
[1757338401599,3.2132,4337.9,4336.7,0.5424]
[1757338401806,0.255,4337.8,4336.7,0.5424]
[1757338402294,0.255,4337.7,4337.1,0.5424]
[1757338402500,0.255,4338.1,4337.6,0.5424]
[1757338402691,3.2078,4338.4,4337.6,0.5424]
[1757338402692,3.4628,4338.4,4337.6,0.5424]
[1757338402898,3.2078,4337.9,4337.6,0.5424]
[1757338403093,3.2078,4337.9,4337.5,0.2096]
[1757338403801,3.2078,4337.9,4337.0,1.007]
[1757338404204,3.4628,4337.9,4337.0,1.007]
[1757338404796,3.4628,4337.9,4337.0,0.752]
[1757338407597,12.9,4338.6,4337.1,0.5424]
[1757338407598,3.2078,4337.4,4337.1,0.5424]
[1757338407800,3.21126009,4339.3,4338.6,0.5424]
[1757338408103,3.21126009,4339.3,4338.6,0.4272]
[1757338409201,0.115,4339.2,4338.6,0.4272]
[1757338409813,0.115,4339.2,4339.0,0.2096]
[1757338410006,0.115,4339.2,4339.1,0.5424]
[1757338410498,0.00346009,4339.3,4339.0,0.2096]
[1757338410899,0.00346009,4339.3,4339.1,0.5424]
[1757338411296,0.00346009,4339.3,4339.0,0.2096]
[1757338411800,0.00346009,4339.3,4339.1,0.5424]
[1757338412210,0.00346009,4339.3,4339.0,0.2096]
[1757338412704,0.00346009,4339.3,4339.1,0.5424]
[1757338413105,0.115,4339.5,4339.1,0.5424]
[1757338413293,0.115,4339.5,4339.4,3.7502]
[1757338413500,3.2078,4340.4,4339.4,3.4618]
[1757338413697,3.2078,4340.9,4340.1,0.5424]
[1757338414702,0.1206,4340.8,4340.1,0.5424]
[1757338415104,0.115,4340.7,4340.1,0.5424]
[1757338415902,3.2078,4340.4,4339.5,0.7406]
[1757338417703,0.115,4340.7,4340.0,3.4254]
[1757338417899,0.115,4340.7,4340.6,0.531]
[1757338418103,3.2078,4340.9,4340.6,0.531]
[1757338418303,3.2078,4340.9,4340.5,0.2176]
[1757338418498,3.2078,4341.7,4340.5,0.2176]
[1757338418704,3.3099,4341.7,4340.6,0.531]
[1757338419207,0.1149,4341.6,4340.7,0.531]
[1757338419999,0.1149,4341.6,4341.5,0.2176]
[1757338420205,0.1149,4341.6,4341.5,0.7486]
[1757338420405,3.2078,4341.7,4341.6,0.531]
[1757338421405,3.4608,4342.2,4341.6,0.531]
[1757338421601,3.2078,4342.2,4341.6,0.531]
[1757338421807,0.1149,4342.1,4342.0,0.2176]
[1757338422006,0.1149,4342.1,4342.0,0.7486]
[1757338422803,3.2078,4342.2,4342.1,0.531]
[1757338423203,3.4608,4342.7,4342.1,0.531]
[1757338423708,3.2078,4342.7,4342.1,0.531]
[1757338423908,0.1149,4342.6,4342.0,0.2176]
[1757338424103,0.1149,4342.6,4342.1,0.531]
[1757338424506,0.1149,4342.6,4342.0,0.2176]
[1757338424908,0.1149,4342.6,4342.1,0.531]
[1757338425207,0.1149,4342.6,4342.0,0.2176]
[1757338425511,0.1149,4342.6,4342.0,0.7486]
[1757338426609,3.2078,4342.2,4341.5,0.2176]
[1757338426809,3.4598,4342.2,4341.5,0.2176]
[1757338427112,3.2078,4342.2,4341.5,0.2176]
[1757338427407,0.1149,4342.6,4342.5,0.2176]
[1757338427607,3.2078,4342.7,4342.5,0.2176]
[1757338427808,3.2078,4342.7,4342.6,0.531]
[1757338428012,3.2078,4342.7,4342.1,3.7388]
[1757338428214,3.2078,4342.7,4342.1,0.531]
[1757338428409,3.2078,4342.7,4342.5,0.2176]
[1757338428609,3.2078,4342.7,4342.6,0.531]
[1757338429610,3.2078,4342.7,4342.0,0.2176]
[1757338429611,3.2078,4342.7,4342.0,0.7486]
[1757338430012,0.252,4342.8,4342.0,0.7486]
[1757338431314,3.2078,4342.7,4342.0,0.7486]
[1757338431909,0.1021,4342.6,4341.6,3.2078]
[1757338432515,0.1021,4342.6,4341.5,0.7486]
[1757338432714,0.1021,4342.6,4341.5,0.2176]
[1757338432914,0.1021,4342.6,4341.6,0.531]
[1757338433217,0.251,4342.5,4341.6,0.531]
[1757338433417,0.251,4342.4,4341.6,0.531]
[1757338434711,3.2078,4342.1,4342.0,0.2176]
[1757338434915,0.1149,4342.9,4342.6,0.531]
[1757338434916,3.2078,4342.7,4342.6,0.531]
[1757338435217,0.1149,4342.9,4342.6,0.531]
[1757338436009,3.2078,4343.7,4343.6,0.531]
[1757338436415,3.2078,4343.7,4343.0,0.7486]
[1757338438316,3.2078,4343.7,4343.5,0.2176]
[1757338438511,3.2078,4343.7,4343.6,0.531]
[1757338440116,3.73195884,4343.7,4343.6,0.531]
[1757338440317,3.2078,4343.7,4343.6,0.531]
[1757338440820,3.2078,4344.3,4343.6,0.531]
[1757338441022,0.52428832,4344.2,4343.6,0.531]
[1757338441223,0.52428832,4344.1,4343.6,0.531]
[1757338441410,3.2078,4344.3,4343.6,0.531]
[1757338441616,0.52434502,4344.2,4343.6,0.531]
[1757338441812,0.52434502,4344.1,4343.6,0.531]
[1757338442022,3.2078,4344.3,4343.6,0.531]
[1757338442222,0.52433909,4344.2,4343.6,0.531]
[1757338442424,3.2078,4343.8,4343.6,0.531]
[1757338442616,3.2078,4343.8,4343.5,0.2176]
[1757338443518,3.2078,4343.8,4343.6,0.531]
[1757338443711,0.25,4344.2,4343.6,0.531]
[1757338443712,3.4578,4344.3,4343.6,0.531]
[1757338443920,0.52441878,4344.2,4343.6,0.531]
[1757338444218,0.52441878,4344.1,4343.6,0.531]
[1757338444417,0.52441878,4344.0,4343.6,0.531]
[1757338444616,0.25,4344.5,4343.6,3.2078]
[1757338444818,0.5277229,4344.4,4343.7,0.531]
[1757338445015,0.5277229,4344.3,4343.7,0.531]
[1757338445221,0.5277229,4344.2,4344.0,0.2176]
[1757338445520,0.5277621,4344.1,4344.0,0.7388]
[1757338447619,0.1988,4345.4,4344.0,0.7388]
[1757338447620,1.7411729,4345.6,4344.1,0.93555]
[1757338447824,0.5073,4345.6,4344.6,0.5212]
[1757338448025,0.5073,4345.6,4344.8,0.5212]
[1757338448227,0.5073,4345.6,4345.0,0.7418]
[1757338448413,0.5073,4345.6,4345.2,0.5212]
[1757338448617,3.4578,4345.8,4345.4,0.5212]
[1757338448819,0.5073,4345.7,4345.4,0.5212]
[1757338449018,3.2078,4345.8,4345.1,0.5212]
[1757338449223,3.2078,4345.8,4345.2,0.1709643]
[1757338449417,3.2078,4345.8,4345.3,0.6921643]
[1757338449627,3.2078,4345.8,4344.6,0.25]
[1757338449628,0.73743,4345.7,4344.4,0.5212]
[1757338449824,0.5073,4345.1,4344.5,0.1710201]
[1757338450024,0.5073,4345.1,4344.6,0.1710201]
[1757338450219,3.2078,4345.2,4344.7,0.1710201]
[1757338450426,3.2078,4345.2,4344.8,0.1710201]
[1757338450728,3.2078,4345.2,4344.9,0.1710201]
[1757338450928,0.5073,4345.1,4345.0,0.1710201]
[1757338451621,3.2078,4345.2,4345.1,0.5212]
[1757338451824,3.2078,4345.2,4345.1,0.6922201]
[1757338452621,0.5073,4346.2,4345.2,0.5212]
[1757338452822,3.2078,4346.4,4345.6,3.2078]
[1757338453022,3.2078,4346.4,4346.0,0.2206]
[1757338453223,3.41,4347.0,4346.1,0.6922201]
[1757338453425,0.5073,4346.8,4346.2,0.1710201]
[1757338453624,0.25,4346.8,4346.3,0.1710201]
[1757338453813,0.5073,4346.7,4346.1,0.5212]
[1757338454020,0.7573,4346.8,4346.2,0.17078394]
[1757338454221,0.7573,4346.8,4346.1,0.5212]
[1757338454528,0.7573,4346.8,4346.2,0.17066153]
[1757338454832,0.7573,4346.8,4346.1,0.5212]
[1757338455023,0.7573,4346.8,4346.2,0.17066197]